fUSD/lending_fUSD_20260605
["ID","MTS","AMOUNT","RATE_DAILY","PERIOD"]
[424221089,1780672232000,-180.04667535,0.00011497,7]
[424221047,1780672232000,-5652.67697478,0.00011149,2]
[424221055,1780672232000,-3631.07414323,0.00011169,2]
[424221109,1780672232000,-438.62826259,0.0001175,2]
[424221107,1780672232000,-1000.0,0.00011749,2]
[424221105,1780672232000,-1000.0,0.00011749,2]
[424221103,1780672232000,-1564.99173741,0.00011707,2]
[424221095,1780672232000,-3556.2424449,0.00011546,2]
[424221101,1780672232000,-1705.19826259,0.00011707,2]
[424221097,1780672232000,-2500.0,0.0001165,2]
[424221093,1780672232000,-500.0,0.00011507,2]
[424221091,1780672232000,-500.0,0.00011507,2]
[424221099,1780672232000,-1000.0,0.00011658,2]
[424221065,1780672232000,-299.99,0.00011242,2]
[424221085,1780672232000,-80214.10320786,0.00011433,2]
[424221073,1780672232000,-200.0,0.00011281,2]
[424221071,1780672232000,-999.99,0.00011242,2]
[424221087,1780672232000,-18198.52851396,0.00011433,2]
[424221082,1780672232000,-30626.2480186,0.00011433,2]
[424221077,1780672232000,-3270.19,0.00011428,2]
[424221075,1780672232000,-6126.61,0.00011281,2]
[424221069,1780672232000,-9999.99,0.00011242,2]
[424221079,1780672232000,-150.0,0.00011432,2]
[424221067,1780672232000,-862.14,0.00011242,2]
[424221063,1780672232000,-15523.38,0.00011242,2]
[424221061,1780672232000,-2000.0,0.00011242,2]
[424221059,1780672232000,-4999.99,0.00011169,2]
[424221045,1780672232000,-2452.48302522,0.00011149,2]
[424221049,1780672232000,-180.04667535,0.00011169,7]
[424221130,1780672238000,-796.05000002,0.00010725,2]
[424221132,1780672238000,-3510.058241,0.00010725,2]
[424221134,1780672238000,-1393.70538923,0.0001175,2]
[424221133,1780672238000,-3203.51529067,0.0001175,2]
[424221135,1780672238000,-398.95485508,0.0001175,2]
[424221131,1780672238000,-1939.06989098,0.00010725,2]
[424221152,1780672241000,-67025.35914588,0.0001175,2]
[424221153,1780672241000,-2125.99,0.00011807,2]
[424221154,1780672241000,-180.04667535,0.00011826,7]
[424221155,1780672241000,-423.35354369,0.00011826,2]
[424221151,1780672241000,-405.28705655,0.0001175,2]
[424221158,1780672241000,-250.0,0.00011978,2]
[424221157,1780672241000,-1680.0,0.00011873,2]
[424221160,1780672241000,-500.0,0.00012055,2]
[424221159,1780672241000,-3270.19,0.00011986,2]
[424221161,1780672241000,-500.0,0.00012055,2]
[424221156,1780672241000,-250.0,0.00011857,2]
[424221165,1780672242000,-3270.19,0.00012264,2]
[424221167,1780672242000,-1487.43,0.00012329,2]
[424221169,1780672242000,-20227.28161258,0.00012347,2]
[424221176,1780672242000,-4158.849,0.00012447,2]
[424221164,1780672242000,-180.04667538,0.00012264,7]
[424221166,1780672242000,-221.84982556,0.00012292,2]
[424221162,1780672242000,-3606.18954003,0.00012097,2]
[424221163,1780672242000,-152.0,0.00012144,7]
[424221173,1780672242000,-500.0,0.00012419,2]
[424221177,1780672242000,-2500000.0,0.00012447,2]
[424221168,1780672242000,-504.02207902,0.00012347,2]
[424221175,1780672242000,-1500000.0,0.00012447,2]
[424221172,1780672242000,-2911.8216272,0.00012419,2]
[424221170,1780672242000,-2014.8804654,0.00012384,2]
[424221184,1780672242000,-586.32426985,0.0001251,2]
[424221171,1780672242000,-4203.97672564,0.00012417,2]
[424221178,1780672242000,-157.05673653,0.00012484,2]
[424221179,1780672242000,-255.0,0.00012495,2]
[424221182,1780672242000,-112517.31732261,0.0001251,2]
[424221181,1780672242000,-1400.0,0.000125,4]
[424221180,1780672242000,-5000.0,0.000125,2]
[424221183,1780672242000,-227.00735219,0.0001251,2]
[424221174,1780672242000,-250.0,0.00012419,2]
[424221208,1780672243000,-631.16923602,0.0001251,2]
[424221207,1780672243000,-150.0,0.00010456,2]
[424221213,1780672246000,-4811.79999997,0.0001251,2]
[424221212,1780672246000,-609.24,0.0001251,2]
[424221218,1780672534000,15000.0,0.00030137,120]
[424221219,1780672662000,22638.12,0.00030137,120]
[424221220,1780672698000,360.09335073,9.47e-05,7]
[424221221,1780672890000,247.9,0.00030082,120]
[424221228,1780673016000,461.70968,0.00030137,120]
[424221236,1780673171000,-648.78652486,9.031e-05,2]
[424221235,1780673171000,-199.24,9.019e-05,2]
[424221237,1780673171000,-250.0,9.043e-05,2]
[424221238,1780673171000,-236.0,9.12e-05,2]
[424221239,1780673171000,-250.0,9.169e-05,2]
[424221242,1780673171000,-500.0,9.918e-05,2]
[424221240,1780673171000,-200.0,9.715e-05,2]
[424221241,1780673171000,-1200.0,9.917e-05,2]
[424221243,1780673171000,-282.49075819,9.918e-05,2]
[424221249,1780673171000,-500.0,9.918e-05,2]
[424221245,1780673171000,-500.0,9.918e-05,2]
[424221247,1780673171000,-500.0,9.918e-05,2]
[424221246,1780673171000,-500.0,9.918e-05,2]
[424221248,1780673171000,-500.0,9.918e-05,2]
[424221251,1780673171000,-250.0,9.921e-05,2]
[424221250,1780673171000,-500.0,9.918e-05,2]
[424221252,1780673171000,-193.0,9.921e-05,2]
[424221254,1780673171000,-290.48271695,9.921e-05,2]
[424221253,1780673171000,-1000.0,9.921e-05,2]
[424221244,1780673171000,-500.0,9.918e-05,2]
[424221266,1780673245000,1400.0,0.000106,3]
[424221268,1780673247000,2800.0,0.000107,3]
[424221269,1780673249000,4200.0,0.000108,3]
[424221271,1780673251000,5600.0,0.000109,3]
[424221274,1780673318000,-250.0,9.705e-05,2]
[424221272,1780673318000,-500.0,9.539e-05,2]
[424221273,1780673318000,-199.68,9.652e-05,2]
[424221275,1780673318000,-475.83230647,9.87e-05,2]
[424221276,1780673318000,-2657.21908714,9.871e-05,2]
[424221280,1780673318000,-165.36,0.00010027,2]
[424221278,1780673318000,-250.0,9.877e-05,2]
[424221281,1780673318000,-2605.0149567,0.00010027,2]
[424221283,1780673318000,-1442.41634616,0.00010081,2]
[424221279,1780673318000,-209.51728305,9.921e-05,2]
[424221282,1780673318000,-37.5450433,0.00010027,2]
[424221277,1780673318000,-852.83915386,9.871e-05,2]
[424221285,1780673343000,-329.12397104,0.00010222,2]
[424221284,1780673343000,-1338.10365384,0.00010081,2]
[424221286,1780673343000,-500.0,0.00010222,2]
[424221287,1780673343000,-288.75426424,0.00010222,2]
[424221288,1780673343000,-244.20081203,0.00010222,2]
[424221289,1780673343000,-500.0,0.00010222,2]
[424221290,1780673343000,-1075.45717599,0.00010223,2]
[424221291,1780673344000,-1727.74056921,0.00010223,2]
[424221292,1780673348000,2000.0,0.00030136,120]
[424221293,1780673410000,-664.0322548,0.00010223,2]
[424221294,1780673410000,-250.0,0.00010243,2]
[424221295,1780673410000,-1200.0,0.00010262,2]
[424221297,1780673410000,-198.394,0.00010263,2]
[424221298,1780673410000,-150.0,0.00010263,2]
[424221299,1780673410000,-10330.6387452,0.00010264,2]
[424221296,1780673410000,-4206.935,0.00010263,2]
[424221300,1780673427000,-900.0,0.00010264,2]
[424221339,1780673432000,-250.0,0.00010493,2]
[424221330,1780673432000,-60.51237238,0.00010264,2]
[424221334,1780673432000,-2158.0,0.0001028,2]
[424221332,1780673432000,-10325.0,0.0001027,2]
[424221337,1780673432000,-2000.0,0.00010312,2]
[424221333,1780673432000,-2642.56,0.00010278,2]
[424221331,1780673432000,-55734.20888242,0.00010264,2]
[424221336,1780673432000,-209618.28409386,0.000103,2]
[424221335,1780673432000,-200.0,0.00010289,2]
[424221338,1780673432000,-1000.0,0.00010486,2]
[424221340,1780673432000,-2642.56,0.00010529,2]
[424221343,1780673432000,-429476.80514159,0.000107,2]
[424221345,1780673432000,-117201.92550949,0.000107,2]
[424221347,1780673432000,-900.63125,0.000107,2]
[424221346,1780673432000,-153603.564887,0.000107,2]
[424221344,1780673432000,-17906.36769334,0.000107,2]
[424221342,1780673432000,-483.10474584,0.0001069,2]
[424221348,1780673432000,-307.39047984,0.000107,2]
[424221341,1780673432000,-175.99884571,0.000106,2]
[424221349,1780673432000,-69429.48507774,0.000107,2]
[424221413,1780673438000,-500.0,0.00011507,2]
[424221397,1780673438000,-10964.2975016,0.00011204,2]
[424221395,1780673438000,-21019.9757267,0.00011156,2]
[424221392,1780673438000,-10964.2975016,0.00011099,2]
[424221394,1780673438000,-10964.2975016,0.00011099,2]
[424221391,1780673438000,-10964.2975016,0.00011099,2]
[424221393,1780673438000,-10964.2975016,0.00011099,2]
[424221402,1780673438000,-250.0,0.00011246,2]
[424221390,1780673438000,-10964.2975016,0.00011099,2]
[424221389,1780673438000,-10964.29750164,0.00011099,2]
[424221387,1780673438000,-21019.9757267,0.00011099,2]
[424221388,1780673438000,-21019.9757267,0.00011099,2]
[424221396,1780673438000,-2125.99,0.00011183,2]
[424221398,1780673438000,-504.02207896,0.00011214,2]
[424221408,1780673438000,-10964.2975016,0.00011369,2]
[424221400,1780673438000,-423.35354369,0.00011233,2]
[424221403,1780673438000,-21019.9757267,0.00011267,2]
[424221399,1780673438000,-150.0,0.00011233,2]
[424221404,1780673438000,-255.0,0.00011279,2]
[424221401,1780673438000,-152.0,0.00011237,2]
[424221405,1780673438000,-1680.0,0.00011288,2]
[424221406,1780673438000,-390.38,0.00011296,2]
[424221410,1780673438000,-1441.54571762,0.000114,2]
[424221419,1780673438000,-309.23169989,0.0001155,2]
[424221409,1780673438000,-21019.9757267,0.00011378,2]
[424221385,1780673438000,-21019.9757267,0.00011099,2]
[424221407,1780673438000,-474.83,0.00011309,2]
[424221386,1780673438000,-21019.9757267,0.00011099,2]
[424221364,1780673438000,-1215.69444518,0.00010812,2]
[424221382,1780673438000,-1092.01,0.00011076,2]
[424221415,1780673438000,-10964.2975016,0.00011535,2]
[424221356,1780673438000,-230.38677973,0.00010263,2]
[424221357,1780673438000,-520.94056842,0.00010263,2]
[424221358,1780673438000,-552.12798497,0.00010263,2]
[424221370,1780673438000,-150.0,0.00010959,2]
[424221363,1780673438000,-2642.56,0.00010779,2]
[424221369,1780673438000,-9999.99,0.00010912,2]
[424221360,1780673438000,-45215.0,0.000107,2]
[424221362,1780673438000,-150.0,0.000107,2]
[424221359,1780673438000,-1755378.13434201,0.000107,2]
[424221367,1780673438000,-504.02207902,0.000109,2]
[424221366,1780673438000,-499.01929766,0.00010858,2]
[424221384,1780673438000,-21019.97572671,0.00011099,2]
[424221365,1780673438000,-193.0,0.00010858,2]
[424221371,1780673438000,-488.18,0.00010959,2]
[424221373,1780673438000,-19140.4,0.00010959,2]
[424221383,1780673438000,-5847.0,0.0001108,2]
[424221372,1780673438000,-9999.99,0.00010959,2]
[424221374,1780673438000,-150.99,0.00010959,2]
[424221375,1780673438000,-150.0,0.00010959,2]
[424221376,1780673438000,-500.0,0.00010959,2]
[424221378,1780673438000,-1560.56,0.0001096,2]
[424221377,1780673438000,-500.0,0.00010959,2]
[424221380,1780673438000,-2642.56,0.0001103,2]
[424221381,1780673438000,-520.34,0.00011063,2]
[424221379,1780673438000,-3136.29,0.0001096,2]
[424221368,1780673438000,-299.99,0.00010912,2]
[424221416,1780673438000,-1341.11645896,0.0001155,2]
[424221453,1780673438000,-151.0,0.00012547,2]
[424221411,1780673438000,-21019.9757267,0.00011489,2]
[424221455,1780673438000,-221.19524044,0.00012584,2]
[424221447,1780673438000,-4412.1791255,0.00012431,2]
[424221457,1780673438000,-500.0,0.00012603,2]
[424221456,1780673438000,-42554.16640452,0.000126,2]
[424221448,1780673438000,-3552.8917537,0.00012431,2]
[424221454,1780673438000,-350.0,0.00012548,3]
[424221449,1780673438000,-3275.4151592,0.00012431,2]
[424221450,1780673438000,-504.02207896,0.00012443,2]
[424221451,1780673438000,-311.78240267,0.000125,2]
[424221452,1780673438000,-30973.04948626,0.0001251,2]
[424221463,1780673438000,-190.67658248,0.00012646,2]
[424221458,1780673438000,-500.0,0.00012603,2]
[424221446,1780673438000,-1781.577206,0.00012431,2]
[424221460,1780673438000,-1023.63214268,0.00012646,3]
[424221465,1780673438000,-215.77576141,0.0001268,2]
[424221466,1780673438000,-1215.69444516,0.00012856,2]
[424221461,1780673438000,-1023.63214269,0.00012646,3]
[424221462,1780673438000,-925.56031615,0.00012646,3]
[424221467,1780673438000,-22228.94,0.0001288,2]
[424221468,1780673438000,-22228.94,0.0001288,2]
[424221469,1780673438000,-2000.0,0.0001289,2]
[424221471,1780673438000,-504.02207896,0.00013057,2]
[424221470,1780673438000,-4354.11995333,0.0001305,2]
[424221472,1780673438000,-500.0,0.00013151,2]
[424221473,1780673438000,-500.0,0.00013151,2]
[424221414,1780673438000,-500.0,0.00011507,2]
[424221464,1780673438000,-160.0,0.0001268,2]
[424221441,1780673438000,-33256.6326,0.00012347,2]
[424221459,1780673438000,-642.874882,0.00012622,2]
[424221445,1780673438000,-193.9553782,0.00012431,2]
[424221420,1780673438000,-157.05673653,0.00011592,2]
[424221442,1780673438000,-2000.0,0.00012347,2]
[424221412,1780673438000,-1215.69444516,0.00011493,2]
[424221417,1780673438000,-4000.0,0.0001155,2]
[424221418,1780673438000,-2910.0058,0.0001155,2]
[424221422,1780673438000,-483.10474584,0.0001164,2]
[424221431,1780673438000,-323.00393276,0.00011896,2]
[424221432,1780673438000,-1400.0,0.000119,4]
[424221433,1780673438000,-1086.8720445,0.00011966,2]
[424221427,1780673438000,-2500000.0,0.0001165,2]
[424221425,1780673438000,-1500000.0,0.0001165,2]
[424221424,1780673438000,-548.07182656,0.00011649,3]
[424221426,1780673438000,-500.0,0.0001165,2]
[424221421,1780673438000,-2000.0,0.00011601,2]
[424221423,1780673438000,-483.10474584,0.0001164,2]
[424221444,1780673438000,-2351.0,0.00012417,2]
[424221440,1780673438000,-247.9,0.00012329,2]
[424221438,1780673438000,-152.0,0.00012145,7]
[424221443,1780673438000,-433.0,0.00012397,2]
[424221437,1780673438000,-152.0,0.00012141,7]
[424221439,1780673438000,-1215.69444516,0.00012175,2]
[424221434,1780673438000,-168.73,0.00011988,2]
[424221436,1780673438000,-500.0,0.00012055,2]
[424221429,1780673438000,-7000.0,0.000118,4]
[424221428,1780673438000,-10964.2975016,0.000117,2]
[424221430,1780673438000,-504.02207896,0.00011829,2]
[424221435,1780673438000,-500.0,0.00012055,2]
[424221518,1780673439000,-500.0,0.00013698,2]
[424221521,1780673439000,-500.0,0.00013698,2]
[424221514,1780673439000,-500.0,0.00013698,2]
[424221513,1780673439000,-500.0,0.00013698,2]
[424221522,1780673439000,-500.0,0.00013698,2]
[424221519,1780673439000,-500.0,0.00013698,2]
[424221511,1780673439000,-500.0,0.00013698,2]
[424221512,1780673439000,-500.0,0.00013698,2]
[424221520,1780673439000,-500.0,0.00013698,2]
[424221500,1780673439000,-562.28097781,0.00013698,2]
[424221501,1780673439000,-500.0,0.00013698,2]
[424221516,1780673439000,-500.0,0.00013698,2]
[424221510,1780673439000,-500.0,0.00013698,2]
[424221515,1780673439000,-500.0,0.00013698,2]
[424221534,1780673439000,-332.85,0.00013698,2]
[424221523,1780673439000,-500.0,0.00013698,2]
[424221527,1780673439000,-500.0,0.00013698,2]
[424221525,1780673439000,-500.0,0.00013698,2]
[424221531,1780673439000,-500.0,0.00013698,2]
[424221528,1780673439000,-500.0,0.00013698,2]
[424221529,1780673439000,-500.0,0.00013698,2]
[424221526,1780673439000,-444.72127567,0.00013698,2]
[424221530,1780673439000,-500.0,0.00013698,2]
[424221533,1780673439000,-500.0,0.00013698,2]
[424221524,1780673439000,-500.0,0.00013698,2]
[424221537,1780673439000,-500.0,0.00013698,2]
[424221532,1780673439000,-500.0,0.00013698,2]
[424221535,1780673439000,-500.0,0.00013698,2]
[424221509,1780673439000,-500.0,0.00013698,2]
[424221517,1780673439000,-500.0,0.00013698,2]
[424221504,1780673439000,-500.0,0.00013698,2]
[424221474,1780673439000,-2268.163658,0.00013424,2]
[424221505,1780673439000,-500.0,0.00013698,2]
[424221482,1780673439000,-736.0,0.00013619,2]
[424221481,1780673439000,-150.0,0.00013613,2]
[424221477,1780673439000,-150.0,0.00013488,2]
[424221479,1780673439000,-150.0,0.00013563,2]
[424221476,1780673439000,-233.036727,0.00013424,2]
[424221478,1780673439000,-1215.69444516,0.00013537,2]
[424221475,1780673439000,-1103.540194,0.00013424,2]
[424221480,1780673439000,-150.0,0.00013588,2]
[424221484,1780673439000,-3292.0,0.00013659,2]
[424221496,1780673439000,-450.05842481,0.00013698,2]
[424221483,1780673439000,-150.0,0.00013638,2]
[424221486,1780673439000,-504.02207896,0.00013671,2]
[424221495,1780673439000,-500.0,0.00013698,2]
[424221494,1780673439000,-500.0,0.00013698,2]
[424221485,1780673439000,-150.0,0.00013663,2]
[424221487,1780673439000,-150.0,0.00013687,2]
[424221490,1780673439000,-500.0,0.00013698,2]
[424221492,1780673439000,-500.0,0.00013698,2]
[424221489,1780673439000,-500.0,0.00013698,2]
[424221488,1780673439000,-500.0,0.00013698,2]
[424221491,1780673439000,-500.0,0.00013698,2]
[424221493,1780673439000,-500.0,0.00013698,2]
[424221497,1780673439000,-500.0,0.00013698,2]
[424221498,1780673439000,-500.0,0.00013698,2]
[424221506,1780673439000,-500.0,0.00013698,2]
[424221508,1780673439000,-500.0,0.00013698,2]
[424221507,1780673439000,-500.0,0.00013698,2]
[424221502,1780673439000,-405.00258812,0.00013698,2]
[424221503,1780673439000,-500.0,0.00013698,2]
[424221499,1780673439000,-500.0,0.00013698,2]
[424221536,1780673439000,-500.0,0.00013698,2]
[424221549,1780673439000,-500.0,0.00013698,2]
[424221539,1780673439000,-500.0,0.00013698,2]
[424221570,1780673439000,-500.0,0.00013698,2]
[424221578,1780673439000,-500.0,0.00013698,2]
[424221580,1780673439000,-532.26,0.00013698,2]
[424221581,1780673439000,-532.26,0.00013698,2]
[424221589,1780673439000,-532.26,0.00013698,2]
[424221582,1780673439000,-532.26,0.00013698,2]
[424221579,1780673439000,-532.26,0.00013698,2]
[424221590,1780673439000,-532.26,0.00013698,2]
[424221588,1780673439000,-532.26,0.00013698,2]
[424221587,1780673439000,-532.26,0.00013698,2]
[424221583,1780673439000,-532.26,0.00013698,2]
[424221584,1780673439000,-532.26,0.00013698,2]
[424221585,1780673439000,-532.26,0.00013698,2]
[424221586,1780673439000,-532.26,0.00013698,2]
[424221592,1780673439000,-532.26,0.00013698,2]
[424221599,1780673439000,-869.08,0.00013698,2]
[424221591,1780673439000,-532.26,0.00013698,2]
[424221598,1780673439000,-869.08,0.00013698,2]
[424221600,1780673439000,-869.08,0.00013698,2]
[424221603,1780673439000,-869.08,0.00013698,2]
[424221594,1780673439000,-532.26,0.00013698,2]
[424221601,1780673439000,-869.08,0.00013698,2]
[424221602,1780673439000,-869.08,0.00013698,2]
[424221596,1780673439000,-532.26,0.00013698,2]
[424221593,1780673439000,-532.26,0.00013698,2]
[424221597,1780673439000,-869.08,0.00013698,2]
[424221604,1780673439000,-869.08,0.00013698,2]
[424221605,1780673439000,-869.08,0.00013698,2]
[424221538,1780673439000,-500.0,0.00013698,2]
[424221568,1780673439000,-500.0,0.00013698,2]
[424221571,1780673439000,-500.0,0.00013698,2]
[424221595,1780673439000,-532.26,0.00013698,2]
[424221577,1780673439000,-500.0,0.00013698,2]
[424221569,1780673439000,-500.0,0.00013698,2]
[424221540,1780673439000,-500.0,0.00013698,2]
[424221542,1780673439000,-500.0,0.00013698,2]
[424221547,1780673439000,-500.0,0.00013698,2]
[424221544,1780673439000,-500.0,0.00013698,2]
[424221545,1780673439000,-500.0,0.00013698,2]
[424221546,1780673439000,-500.0,0.00013698,2]
[424221541,1780673439000,-500.0,0.00013698,2]
[424221550,1780673439000,-500.0,0.00013698,2]
[424221552,1780673439000,-500.0,0.00013698,2]
[424221553,1780673439000,-500.0,0.00013698,2]
[424221554,1780673439000,-500.0,0.00013698,2]
[424221555,1780673439000,-500.0,0.00013698,2]
[424221551,1780673439000,-194.5,0.00013698,2]
[424221543,1780673439000,-500.0,0.00013698,2]
[424221560,1780673439000,-500.0,0.00013698,2]
[424221557,1780673439000,-500.0,0.00013698,2]
[424221572,1780673439000,-500.0,0.00013698,2]
[424221576,1780673439000,-500.0,0.00013698,2]
[424221573,1780673439000,-500.0,0.00013698,2]
[424221567,1780673439000,-500.0,0.00013698,2]
[424221565,1780673439000,-500.0,0.00013698,2]
[424221574,1780673439000,-500.0,0.00013698,2]
[424221575,1780673439000,-500.0,0.00013698,2]
[424221566,1780673439000,-500.0,0.00013698,2]
[424221564,1780673439000,-500.0,0.00013698,2]
[424221562,1780673439000,-500.0,0.00013698,2]
[424221563,1780673439000,-521.81722162,0.00013698,2]
[424221561,1780673439000,-500.0,0.00013698,2]
[424221559,1780673439000,-500.0,0.00013698,2]
[424221642,1780673440000,-150.0,0.00014112,2]
[424221643,1780673440000,-150.0,0.00014137,2]
[424221641,1780673440000,-166.66,0.0001411,2]
[424221636,1780673440000,-250.0,0.00014,2]
[424221637,1780673440000,-150.0,0.00014012,2]
[424221632,1780673440000,-150.0,0.00013937,2]
[424221634,1780673440000,-166.66,0.00013973,2]
[424221638,1780673440000,-150.0,0.00014037,2]
[424221633,1780673440000,-150.0,0.00013962,2]
[424221635,1780673440000,-150.0,0.00013987,2]
[424221640,1780673440000,-150.0,0.00014087,2]
[424221648,1780673440000,-1215.69444516,0.00014219,2]
[424221644,1780673440000,-150.0,0.00014162,2]
[424221646,1780673440000,-150.0,0.00014187,2]
[424221647,1780673440000,-150.0,0.00014212,2]
[424221652,1780673440000,-500.0,0.00014247,2]
[424221645,1780673440000,-2000.0,0.00014179,2]
[424221651,1780673440000,-166.66,0.00014247,2]
[424221649,1780673440000,-150.0,0.00014237,2]
[424221650,1780673440000,-150.0,0.00014237,2]
[424221631,1780673440000,-150.0,0.00013912,2]
[424221654,1780673440000,-504.02207896,0.00014286,2]
[424221639,1780673440000,-150.0,0.00014062,2]
[424221625,1780673440000,-150.0,0.00013787,2]
[424221612,1780673440000,-869.08,0.00013698,2]
[424221626,1780673440000,-150.0,0.00013812,2]
[424221655,1780673440000,-150.0,0.00014287,2]
[424221608,1780673440000,-869.08,0.00013698,2]
[424221607,1780673440000,-869.08,0.00013698,2]
[424221606,1780673440000,-869.08,0.00013698,2]
[424221609,1780673440000,-869.08,0.00013698,2]
[424221613,1780673440000,-869.08,0.00013698,2]
[424221616,1780673440000,-549.4336552,0.00013699,2]
[424221610,1780673440000,-869.08,0.00013698,2]
[424221611,1780673440000,-869.08,0.00013698,2]
[424221614,1780673440000,-869.08,0.00013698,2]
[424221627,1780673440000,-166.66,0.00013836,2]
[424221615,1780673440000,-500.0,0.00013699,2]
[424221630,1780673440000,-150.0,0.00013887,2]
[424221618,1780673440000,-166.66,0.00013699,2]
[424221629,1780673440000,-150.0,0.00013862,2]
[424221628,1780673440000,-150.0,0.00013837,2]
[424221619,1780673440000,-200.0,0.00013699,2]
[424221622,1780673440000,-150.0,0.00013712,2]
[424221620,1780673440000,-432.76227356,0.00013699,2]
[424221621,1780673440000,-1328.69,0.000137,2]
[424221624,1780673440000,-150.0,0.00013762,2]
[424221623,1780673440000,-150.0,0.00013737,2]
[424221617,1780673440000,-2500.0,0.00013699,2]
[424221653,1780673440000,-150.0,0.00014262,2]
[424221656,1780673440000,-150.0,0.00014312,2]
[424221694,1780673440000,-1135.0,0.00015068,2]
[424221688,1780673440000,-849161.05344926,0.00015,2]
[424221691,1780673440000,-1513.8716214,0.00015,7]
[424221685,1780673440000,-300.0,0.00014999,2]
[424221693,1780673440000,-1548.0,0.0001504,2]
[424221690,1780673440000,-351.7515791,0.00015,2]
[424221692,1780673440000,-4609.0,0.00015025,2]
[424221687,1780673440000,-2513.65311835,0.00015,14]
[424221689,1780673440000,-428.77736464,0.00015,2]
[424221695,1780673440000,-1166.0,0.00015068,2]
[424221705,1780673440000,-3451.27297212,0.00015329,2]
[424221684,1780673440000,-300.0,0.00014999,2]
[424221706,1780673440000,-3451.27297212,0.00015339,2]
[424221696,1780673440000,-900.0,0.00015068,2]
[424221698,1780673440000,-3451.27297212,0.00015238,2]
[424221699,1780673440000,-3451.27297212,0.00015268,2]
[424221700,1780673440000,-532.26,0.00015272,2]
[424221701,1780673440000,-869.08,0.00015272,2]
[424221703,1780673440000,-3451.27297212,0.00015278,2]
[424221704,1780673440000,-1517.64,0.000153,2]
[424221702,1780673440000,-3451.27297212,0.00015273,2]
[424221708,1780673440000,-166.66,0.00015354,2]
[424221657,1780673440000,-150.0,0.00014337,2]
[424221707,1780673440000,-500.0,0.00015342,2]
[424221681,1780673440000,-300.0,0.00014999,2]
[424221686,1780673440000,-12439941.85934932,0.00015,2]
[424221682,1780673440000,-300.0,0.00014999,2]
[424221660,1780673440000,-166.66,0.00014384,2]
[424221659,1780673440000,-150.0,0.00014362,2]
[424221661,1780673440000,-150.0,0.00014387,2]
[424221662,1780673440000,-150.0,0.00014412,2]
[424221663,1780673440000,-150.0,0.00014437,2]
[424221667,1780673440000,-1400.0,0.000147,5]
[424221683,1780673440000,-666.0,0.00014999,2]
[424221666,1780673440000,-150.0,0.00014562,2]
[424221658,1780673440000,-1500.0,0.00014338,2]
[424221664,1780673440000,-150.0,0.00014462,2]
[424221668,1780673440000,-500.0,0.00014795,2]
[424221670,1780673440000,-1555.5,0.00014886,2]
[424221665,1780673440000,-150.0,0.00014512,2]
[424221680,1780673440000,-250.0,0.00014999,2]
[424221679,1780673440000,-150.00000064,0.00014986,2]
[424221678,1780673440000,-1252.0,0.00014973,2]
[424221677,1780673440000,-1000.0,0.0001497,2]
[424221675,1780673440000,-10000.0,0.00014934,2]
[424221676,1780673440000,-500.0,0.0001497,2]
[424221673,1780673440000,-504.02207896,0.000149,2]
[424221674,1780673440000,-10000.0,0.00014913,2]
[424221672,1780673440000,-1400.0,0.000149,5]
[424221671,1780673440000,-1215.69444516,0.000149,2]
[424221669,1780673440000,-1400.0,0.000148,5]
[424221757,1780673441000,-3451.27297212,0.00016178,2]